fUSD/lending_fUSD_20250120
["ID","MTS","AMOUNT","RATE_DAILY","PERIOD"]
[349670415,1737365438679,-260.70649831,0.00020039,2]
[349670416,1737365438689,-500.0,0.00020039,2]
[349670417,1737365438699,-500.0,0.00020039,2]
[349670418,1737365438709,-500.0,0.00020039,2]
[349670419,1737365438719,-775.99,0.00020039,2]
[349670420,1737365438728,-500.0,0.00020039,2]
[349670421,1737365438738,-500.0,0.00020039,2]
[349670422,1737365438748,-500.0,0.00020039,2]
[349670423,1737365438757,-500.0,0.00020039,2]
[349670424,1737365438766,-500.0,0.00020039,2]
[349670425,1737365438776,-500.0,0.00020039,2]
[349670426,1737365438786,-673.85,0.00020039,2]
[349670427,1737365438797,-500.0,0.00020039,2]
[349670428,1737365438806,-910.35,0.00020039,2]
[349670429,1737365438816,-550.45,0.00020039,2]
[349670430,1737365438826,-500.0,0.00020039,2]
[349670431,1737365438837,-500.0,0.00020039,2]
[349670432,1737365438848,-644.53,0.00020039,2]
[349670433,1737365438858,-500.0,0.00020039,2]
[349670434,1737365438867,-500.0,0.00020039,2]
[349670435,1737365438877,-202.38831038,0.00020127,2]
[349670436,1737365438890,-726.4306955,0.00020157,2]
[349670437,1737365438900,-500.0,0.0002025,2]
[349670438,1737365438910,-202.38831038,0.00020264,2]
[349670439,1737365438919,-159.28,0.00020301,2]
[349670440,1737365438928,-159.28,0.00020301,2]
[349670441,1737365438938,-159.28,0.00020302,2]
[349670442,1737365438948,-1008.81,0.0002031,2]
[349670443,1737365438957,-647.42,0.0002031,2]
[349670444,1737365438967,-988.15,0.0002031,2]
[349670445,1737365438977,-546.62,0.0002031,2]
[349670446,1737365438986,-1162.42,0.0002031,2]
[349670447,1737365439192,-500.0,0.0002031,2]
[349670448,1737365439202,-824.5,0.0002031,2]
[349670449,1737365439212,-500.0,0.0002031,2]
[349670450,1737365439222,-917.03,0.0002031,2]
[349670451,1737365439232,-1712.91,0.0002031,2]
[349670452,1737365439241,-500.0,0.0002031,2]
[349670453,1737365439251,-500.0,0.0002031,2]
[349670454,1737365439261,-657.21,0.0002031,2]
[349670455,1737365439273,-500.0,0.0002031,2]
[349670456,1737365439283,-1436.78,0.0002031,2]
[349670457,1737365439293,-500.0,0.0002031,2]
[349670458,1737365439303,-713.45,0.0002031,2]
[349670459,1737365439313,-768.87,0.0002031,2]
[349670460,1737365439323,-500.0,0.0002031,2]
[349670461,1737365439332,-500.0,0.0002031,2]
[349670462,1737365439342,-988.18,0.0002031,2]
[349670463,1737365439355,-1010.25,0.0002031,2]
[349670464,1737365439364,-500.0,0.0002031,2]
[349670465,1737365439374,-527.41,0.0002031,2]
[349670466,1737365439383,-500.0,0.0002031,2]
[349670467,1737365439393,-1233.41,0.0002031,2]
[349670468,1737365439402,-500.0,0.0002031,2]
[349670469,1737365439412,-2166.02,0.0002031,2]
[349670470,1737365439422,-878.47,0.0002031,2]
[349670471,1737365439432,-500.0,0.0002031,2]
[349670472,1737365439442,-500.0,0.0002031,2]
[349670473,1737365439452,-500.0,0.0002031,2]
[349670474,1737365439462,-500.0,0.0002031,2]
[349670475,1737365439472,-1177.32,0.0002031,2]
[349670476,1737365439482,-500.0,0.0002031,2]
[349670477,1737365439492,-599.48,0.0002031,2]
[349670478,1737365439512,-500.0,0.00020311,2]
[349670479,1737365439522,-500.0,0.00020311,2]
[349670480,1737365439533,-500.0,0.00020311,2]
[349670481,1737365439543,-500.0,0.00020311,2]
[349670482,1737365439553,-500.0,0.00020311,2]
[349670483,1737365439563,-500.0,0.00020311,2]
[349670484,1737365439573,-500.0,0.00020311,2]
[349670485,1737365439582,-500.0,0.00020311,2]
[349670486,1737365439592,-500.0,0.00020311,2]
[349670487,1737365439602,-302.61043483,0.00020311,2]
[349670488,1737365439611,-500.0,0.00020311,2]
[349670489,1737365439621,-500.0,0.00020311,2]
[349670490,1737365439631,-500.0,0.00020311,2]
[349670491,1737365439642,-500.0,0.00020311,2]
[349670492,1737365439652,-500.0,0.00020311,2]
[349670493,1737365439662,-521.5,0.00020311,2]
[349670494,1737365439672,-500.0,0.00020311,2]
[349670495,1737365439681,-619.93,0.00020311,2]
[349670496,1737365439691,-500.0,0.00020311,2]
[349670497,1737365439701,-383.501717,0.00020311,2]
[349670498,1737365439710,-500.0,0.00020311,2]
[349670499,1737365439720,-500.0,0.00020311,2]
[349670500,1737365439729,-771.132688,0.00020311,2]
[349670501,1737365439739,-576.89,0.00020311,2]
[349670502,1737365439749,-500.0,0.00020311,2]
[349670503,1737365439759,-500.0,0.00020311,2]
[349670504,1737365439769,-724.53,0.00020311,2]
[349670505,1737365439779,-308.34030289,0.00020311,2]
[349670506,1737365439789,-500.0,0.00020311,2]
[349670507,1737365439799,-610.91,0.00020311,2]
[349670508,1737365439808,-730.93,0.00020311,2]
[349670509,1737365439818,-529.13,0.00020311,2]
[349670510,1737365439828,-500.0,0.00020311,2]
[349670511,1737365439837,-574.02,0.00020311,2]
[349670512,1737365439849,-500.0,0.00020311,2]
[349670513,1737365439858,-580.86,0.00020311,2]
[349670514,1737365439868,-580.81,0.00020311,2]
[349670515,1737365439877,-593.51,0.00020311,2]
[349670516,1737365439887,-500.0,0.00020311,2]
[349670517,1737365439896,-500.0,0.00020311,2]
[349670518,1737365439906,-500.0,0.00020311,2]
[349670519,1737365439916,-500.0,0.00020311,2]
[349670520,1737365439925,-500.0,0.00020311,2]
[349670521,1737365439935,-500.0,0.00020311,2]
[349670522,1737365439946,-500.0,0.00020311,2]
[349670523,1737365439965,-562.44,0.00020311,2]
[349670524,1737365439982,-500.0,0.00020311,2]
[349670525,1737365439997,-500.0,0.00020311,2]
[349670526,1737365440019,-500.0,0.00020311,2]
[349670528,1737365440030,-500.0,0.00020311,2]
[349670529,1737365440040,-955.48,0.00020311,2]
[349670530,1737365440050,-500.0,0.00020311,2]
[349670531,1737365440060,-1029.71,0.00020311,2]
[349670532,1737365440070,-500.0,0.00020311,2]
[349670533,1737365440080,-581.98,0.00020311,2]
[349670534,1737365440089,-500.0,0.00020311,2]
[349670535,1737365440100,-500.0,0.00020311,2]
[349670536,1737365440110,-1212.71,0.00020311,2]
[349670537,1737365440119,-500.0,0.00020311,2]
[349670538,1737365440129,-500.0,0.00020311,2]
[349670539,1737365440138,-525.22,0.00020311,2]
[349670540,1737365440148,-860.88,0.00020311,2]
[349670541,1737365440157,-510.87,0.00020311,2]
[349670542,1737365440167,-815.25,0.00020311,2]
[349670543,1737365440177,-500.0,0.00020311,2]
[349670544,1737365440186,-500.0,0.00020311,2]
[349670545,1737365440195,-736.74,0.00020311,2]
[349670546,1737365440204,-500.0,0.00020311,2]
[349670547,1737365440213,-673.51,0.00020311,2]
[349670548,1737365440223,-500.0,0.00020311,2]
[349670549,1737365440232,-500.0,0.00020311,2]
[349670550,1737365440242,-500.0,0.00020311,2]
[349670551,1737365440251,-500.0,0.00020311,2]
[349670552,1737365440263,-500.0,0.00020311,2]
[349670553,1737365440275,-633.08,0.00020311,2]
[349670554,1737365440285,-500.0,0.00020311,2]
[349670555,1737365440294,-275.89316069,0.00020311,2]
[349670556,1737365440304,-500.0,0.00020311,2]
[349670557,1737365440314,-500.0,0.00020311,2]
[349670558,1737365440323,-500.0,0.00020311,2]
[349670559,1737365440332,-500.0,0.00020311,2]
[349670560,1737365440341,-1115.84,0.00020311,2]
[349670561,1737365440353,-1067.99,0.00020311,2]
[349670562,1737365440363,-320.95119385,0.00020311,2]
[349670563,1737365440376,-500.0,0.00020311,2]
[349670564,1737365440386,-500.0,0.00020311,2]
[349670565,1737365440396,-157.129548,0.00020311,2]
[349670566,1737365440406,-500.0,0.00020311,2]
[349670567,1737365440416,-988.24,0.00020311,2]
[349670568,1737365440426,-1834.65,0.00020311,2]
[349670569,1737365440435,-500.0,0.00020311,2]
[349670570,1737365440445,-500.0,0.00020311,2]
[349670571,1737365440454,-881.46,0.00020311,2]
[349670572,1737365440464,-500.0,0.00020311,2]
[349670573,1737365440473,-2057.98,0.00020311,2]
[349670574,1737365440482,-500.0,0.00020311,2]
[349670575,1737365440491,-500.0,0.00020311,2]
[349670576,1737365440501,-500.0,0.00020311,2]
[349670577,1737365440511,-500.0,0.00020311,2]
[349670578,1737365440520,-500.0,0.00020311,2]
[349670580,1737365440529,-500.0,0.00020311,2]
[349670582,1737365440538,-500.0,0.00020311,2]
[349670584,1737365440549,-500.0,0.00020311,2]
[349670586,1737365440559,-1320.04,0.00020311,2]
[349670588,1737365440568,-500.0,0.00020311,2]
[349670590,1737365440577,-500.0,0.00020311,2]
[349670592,1737365440587,-655.91,0.00020311,2]
[349670594,1737365440596,-514.9,0.00020311,2]
[349670596,1737365440608,-983.97,0.00020311,2]
[349670598,1737365440617,-564.46,0.00020311,2]
[349670600,1737365440626,-3420.52,0.00020311,2]
[349670602,1737365440636,-500.0,0.00020311,2]
[349670604,1737365440645,-500.0,0.00020311,2]
[349670605,1737365440655,-500.0,0.00020311,2]
[349670608,1737365440665,-500.0,0.00020311,2]
[349670610,1737365440674,-500.0,0.00020311,2]
[349670612,1737365440684,-500.0,0.00020311,2]
[349670614,1737365440694,-500.0,0.00020311,2]
[349670616,1737365440704,-500.0,0.00020311,2]
[349670618,1737365440713,-651.38,0.00020311,2]
[349670620,1737365440724,-500.0,0.00020311,2]
[349670622,1737365440733,-500.0,0.00020311,2]
[349670623,1737365440743,-940.45,0.00020311,2]
[349670624,1737365440753,-923.46,0.00020311,2]
[349670625,1737365440763,-500.0,0.00020311,2]
[349670626,1737365440773,-500.0,0.00020311,2]
[349670627,1737365440783,-918.33,0.00020311,2]
[349670628,1737365440793,-1223.26,0.00020311,2]
[349670629,1737365440802,-500.0,0.00020311,2]
[349670630,1737365440812,-1945.23,0.00020311,2]
[349670631,1737365440822,-1539.61,0.00020311,2]
[349670632,1737365440831,-500.0,0.00020311,2]
[349670633,1737365440840,-4743.0,0.00020311,2]
[349670634,1737365440851,-500.0,0.00020311,2]
[349670635,1737365440860,-500.0,0.00020311,2]
[349670636,1737365440870,-1865.32,0.00020311,2]
[349670637,1737365440879,-500.0,0.00020311,2]
[349670638,1737365440889,-500.0,0.00020311,2]
[349670639,1737365440899,-500.0,0.00020311,2]
[349670640,1737365440908,-1234.45,0.00020311,2]
[349670641,1737365440918,-500.0,0.00020311,2]
[349670642,1737365440928,-500.0,0.00020311,2]
[349670643,1737365440937,-500.0,0.00020311,2]
[349670644,1737365440947,-2533.52,0.00020311,2]
[349670645,1737365440957,-596.83,0.00020311,2]
[349670646,1737365440967,-3294.27,0.00020311,2]
[349670647,1737365440976,-811.79,0.00020311,2]
[349670648,1737365440987,-798.05,0.00020311,2]
[349670649,1737365440997,-2186.34,0.00020311,2]
[349670650,1737365441006,-500.0,0.00020311,2]
[349670651,1737365441015,-500.0,0.00020311,2]
[349670652,1737365441026,-861.93,0.00020311,2]
[349670653,1737365441036,-500.0,0.00020311,2]
[349670654,1737365441045,-3579.84,0.00020311,2]
[349670655,1737365441055,-985.66,0.00020311,2]
[349670656,1737365441065,-500.0,0.00020311,2]
[349670657,1737365441075,-414.2128298,0.00020311,2]
[349670658,1737365441085,-500.0,0.00020312,2]
[349670659,1737365441095,-500.0,0.00020312,2]
[349670660,1737365441106,-500.0,0.00020312,2]
[349670661,1737365441115,-500.0,0.00020312,2]
[349670662,1737365441126,-500.0,0.00020312,2]
[349670663,1737365441135,-200.0,0.00020312,2]
[349670664,1737365441146,-500.0,0.00020312,2]
[349670665,1737365441155,-500.0,0.00020312,2]
[349670666,1737365441165,-500.0,0.00020312,2]
[349670667,1737365441174,-500.0,0.00020312,2]
[349670668,1737365441184,-500.0,0.00020312,2]
[349670669,1737365441193,-631.63,0.00020312,2]
[349670670,1737365441202,-500.0,0.00020312,2]
[349670671,1737365441212,-380.1300443,0.00020312,2]
[349670672,1737365441221,-500.0,0.00020312,2]
[349670673,1737365441231,-500.0,0.00020312,2]
[349670674,1737365441241,-500.0,0.00020312,2]
[349670675,1737365441251,-276.32648131,0.00020312,2]
[349670676,1737365441260,-609.23495272,0.00020312,2]
[349670677,1737365441275,-500.0,0.00020312,2]
[349670678,1737365441285,-500.0,0.00020312,2]
[349670679,1737365441294,-500.0,0.00020312,2]
[349670680,1737365441304,-500.0,0.00020312,2]
[349670681,1737365441314,-500.0,0.00020312,2]
[349670682,1737365441325,-164.74661609,0.00020312,2]
[349670683,1737365441335,-500.0,0.00020312,2]
[349670684,1737365441345,-500.0,0.00020312,2]
[349670685,1737365441360,-316.548498,0.00020312,2]
[349670686,1737365441370,-607.62413074,0.00020312,2]
[349670687,1737365441379,-285.29495387,0.00020312,2]
[349670688,1737365441389,-500.0,0.00020312,2]
[349670689,1737365441399,-500.0,0.00020312,2]
[349670690,1737365441408,-589.09824924,0.00020312,2]
[349670691,1737365441417,-500.0,0.00020312,2]
[349670692,1737365441427,-500.0,0.00020312,2]
[349670693,1737365441437,-500.0,0.00020312,2]
[349670694,1737365441446,-500.0,0.00020312,2]
[349670695,1737365441456,-500.0,0.00020312,2]
[349670696,1737365441465,-512.06085558,0.00020312,2]
[349670697,1737365441474,-500.0,0.00020312,2]
[349670698,1737365441484,-500.0,0.00020312,2]
[349670699,1737365441493,-500.0,0.00020312,2]
[349670700,1737365441503,-500.0,0.00020312,2]
[349670701,1737365441512,-600.0,0.00020312,2]
[349670702,1737365441522,-500.0,0.00020312,2]
[349670703,1737365441532,-500.0,0.00020312,2]
[349670704,1737365441542,-500.0,0.00020312,2]
[349670705,1737365441552,-500.0,0.00020312,2]
[349670706,1737365441562,-500.0,0.00020312,2]
[349670707,1737365441572,-500.0,0.00020312,2]
[349670708,1737365441581,-500.0,0.00020312,2]
[349670709,1737365441591,-500.0,0.00020312,2]
[349670710,1737365441601,-240.22347194,0.00020312,2]
[349670711,1737365441610,-500.0,0.00020312,2]
[349670712,1737365441620,-500.0,0.00020312,2]
[349670713,1737365441630,-524.14570629,0.00020312,2]
[349670714,1737365441639,-500.0,0.00020312,2]
[349670715,1737365441648,-200.0,0.00020312,2]
[349670716,1737365441658,-500.0,0.00020312,2]
[349670717,1737365441667,-500.0,0.00020312,2]
[349670718,1737365441677,-1283.32,0.00020312,2]
[349670719,1737365441687,-186.21186872,0.00020312,2]
[349670720,1737365441696,-504.48174321,0.00020312,2]
[349670721,1737365441706,-1484.76,0.00020312,2]
[349670722,1737365441715,-236.15564454,0.00020312,2]
[349670723,1737365441725,-500.0,0.00020312,2]
[349670724,1737365441735,-1000.0,0.00020312,2]
[349670725,1737365441744,-500.0,0.00020312,2]
[349670726,1737365441755,-500.0,0.00020312,2]
[349670727,1737365441764,-500.0,0.00020312,2]
[349670728,1737365441774,-500.0,0.00020312,2]
[349670729,1737365441783,-500.0,0.00020312,2]
[349670730,1737365441792,-2003.62,0.00020312,2]
[349670731,1737365441802,-500.0,0.00020312,2]
[349670732,1737365441811,-500.0,0.00020312,2]
[349670733,1737365441820,-1002.31,0.00020312,2]
[349670734,1737365441829,-500.0,0.00020312,2]
[349670735,1737365441839,-500.0,0.00020312,2]
[349670736,1737365441848,-500.0,0.00020312,2]
[349670737,1737365441860,-581.22117344,0.00020312,2]
[349670738,1737365441870,-500.0,0.00020312,2]
[349670739,1737365441879,-500.0,0.00020312,2]
[349670740,1737365441889,-500.0,0.00020312,2]
[349670741,1737365441898,-500.0,0.00020312,2]
[349670742,1737365441908,-510.72815144,0.00020312,2]
[349670743,1737365441918,-500.0,0.00020312,2]
[349670744,1737365441927,-500.0,0.00020312,2]
[349670745,1737365441937,-501.97665642,0.00020312,2]
[349670746,1737365441947,-500.0,0.00020312,2]
[349670747,1737365441957,-500.0,0.00020312,2]
[349670748,1737365441966,-479.63908879,0.00020312,2]
[349670749,1737365441975,-500.0,0.00020312,2]
[349670750,1737365441985,-500.0,0.00020312,2]
[349670751,1737365441994,-500.0,0.00020312,2]
[349670752,1737365442004,-500.0,0.00020312,2]
[349670753,1737365442014,-500.0,0.00020312,2]
[349670754,1737365442023,-500.0,0.00020312,2]
[349670755,1737365442033,-410.72939146,0.00020312,2]
[349670766,1737365443716,-89.27060854,0.00020312,2]
[349670767,1737365443726,-500.0,0.00020312,2]
[349670768,1737365443736,-532.82,0.00020313,2]
[349670769,1737365443745,-500.0,0.00020313,2]
[349670770,1737365443755,-500.0,0.00020313,2]
[349670771,1737365443764,-500.0,0.00020313,2]
[349670772,1737365443774,-500.0,0.00020313,2]
[349670773,1737365443783,-500.0,0.00020313,2]
[349670774,1737365443792,-659.34,0.00020313,2]
[349670775,1737365443801,-542.29,0.00020313,2]
[349670776,1737365443811,-656.17,0.00020313,2]
[349670777,1737365443820,-745.86,0.00020313,2]
[349670778,1737365443829,-500.0,0.00020313,2]
[349670779,1737365443839,-500.0,0.00020313,2]
[349670780,1737365443848,-500.0,0.00020313,2]
[349670781,1737365443859,-500.0,0.00020313,2]
[349670782,1737365443868,-566.51,0.00020313,2]
[349670783,1737365443878,-500.0,0.00020313,2]
[349670784,1737365443887,-500.0,0.00020313,2]
[349670785,1737365443897,-500.0,0.00020313,2]
[349670786,1737365443906,-528.07,0.00020313,2]
[349670787,1737365443915,-290.42,0.00020313,2]
[349670788,1737365443924,-500.0,0.00020313,2]
[349670789,1737365443934,-500.0,0.00020313,2]
[349670790,1737365443943,-775.99,0.00020313,2]
[349670791,1737365443952,-500.0,0.00020313,2]
[349670792,1737365443962,-500.0,0.00020313,2]
[349670793,1737365443971,-500.0,0.00020313,2]
[349670794,1737365443980,-500.0,0.00020313,2]
[349670795,1737365443990,-673.85,0.00020313,2]
[349670796,1737365443999,-500.0,0.00020313,2]
[349670797,1737365444008,-910.35,0.00020313,2]
[349670798,1737365444017,-550.45,0.00020313,2]
[349670799,1737365444027,-500.0,0.00020313,2]
[349670800,1737365444037,-500.0,0.00020313,2]
[349670801,1737365444045,-644.53,0.00020313,2]
[349670802,1737365444055,-500.0,0.00020313,2]
[349670803,1737365444064,-632.70413481,0.00020313,2]
[349670804,1737365444073,-165.82,0.00020324,2]
[349670805,1737365444082,-173.61,0.0002033,2]
[349670806,1737365444091,-500.0,0.00020356,2]
[349670807,1737365444100,-726.4306955,0.00020375,2]
[349670808,1737365444110,-582.9989,0.0002038,2]
[349670809,1737365444119,-202.38831038,0.000204,2]
[349670810,1737365444129,-500.0,0.00020423,2]
[349670811,1737365444139,-369.2078799,0.00020432,2]
[349670812,1737365444149,-159.28,0.00020477,2]
[349670813,1737365444158,-6606.0682,0.00020487,2]
[349670814,1737365444167,-202.38831038,0.00020536,2]
[349670815,1737365444176,-1008.81,0.00020584,2]
[349670816,1737365444185,-647.42,0.00020584,2]
[349670817,1737365444194,-988.15,0.00020584,2]
[349670818,1737365444204,-546.62,0.00020584,2]
[349670819,1737365444213,-1162.42,0.00020584,2]
[349670820,1737365444222,-500.0,0.00020584,2]
[349670821,1737365444231,-824.5,0.00020584,2]
[349670822,1737365444240,-917.03,0.00020584,2]
[349670823,1737365444250,-1712.91,0.00020584,2]
[349670824,1737365444259,-500.0,0.00020584,2]
[349670825,1737365444272,-500.0,0.00020584,2]
[349670826,1737365444281,-657.21,0.00020584,2]
[349670827,1737365444289,-500.0,0.00020584,2]
[349670828,1737365444298,-1436.78,0.00020584,2]
[349670829,1737365444307,-713.45,0.00020584,2]
[349670830,1737365444317,-768.87,0.00020584,2]
[349670831,1737365444326,-500.0,0.00020584,2]
[349670832,1737365444336,-500.0,0.00020584,2]
[349670833,1737365444345,-988.18,0.00020584,2]
[349670834,1737365444357,-1010.25,0.00020584,2]
[349670835,1737365444366,-500.0,0.00020584,2]
[349670836,1737365444376,-527.41,0.00020584,2]
[349670837,1737365444385,-597.96093699,0.00020584,2]
[349670838,1737365444394,-1233.41,0.00020584,2]
[349670839,1737365444403,-500.0,0.00020584,2]
[349670840,1737365444412,-2166.02,0.00020584,2]
[349670841,1737365444422,-878.47,0.00020584,2]
[349670842,1737365444431,-500.0,0.00020584,2]
[349670843,1737365444440,-226.91114887,0.00020584,2]
[349670844,1737365444450,-1177.32,0.00020584,2]
[349670845,1737365444459,-599.48,0.00020584,2]
[349670846,1737365444469,-500.0,0.00020585,2]
[349670847,1737365444479,-500.0,0.00020585,2]
[349670848,1737365444487,-500.0,0.00020585,2]
[349670849,1737365444497,-500.0,0.00020585,2]
[349670850,1737365444506,-500.0,0.00020585,2]
[349670851,1737365444514,-500.0,0.00020585,2]
[349670852,1737365444522,-500.0,0.00020585,2]
[349670853,1737365444531,-500.0,0.00020585,2]
[349670854,1737365444540,-500.0,0.00020585,2]
[349670855,1737365444550,-500.0,0.00020585,2]
[349670856,1737365444560,-500.0,0.00020585,2]
[349670857,1737365444569,-500.0,0.00020585,2]
[349670858,1737365444579,-500.0,0.00020585,2]
[349670859,1737365444587,-521.5,0.00020585,2]
[349670860,1737365444597,-500.0,0.00020585,2]
[349670861,1737365444607,-619.93,0.00020585,2]
[349670862,1737365444616,-500.0,0.00020585,2]
[349670863,1737365444626,-383.501717,0.00020585,2]
[349670864,1737365444635,-500.0,0.00020585,2]
[349670865,1737365444644,-500.0,0.00020585,2]
[349670866,1737365444654,-576.89,0.00020585,2]
[349670867,1737365444663,-771.132688,0.00020585,2]
[349670868,1737365444673,-500.0,0.00020585,2]
[349670869,1737365444683,-500.0,0.00020585,2]
[349670870,1737365444692,-724.53,0.00020585,2]
[349670871,1737365444701,-500.0,0.00020585,2]
[349670872,1737365444710,-610.91,0.00020585,2]
[349670873,1737365444720,-730.93,0.00020585,2]
[349670874,1737365444729,-529.13,0.00020585,2]
[349670875,1737365444739,-500.0,0.00020585,2]
[349670876,1737365444748,-574.02,0.00020585,2]
[349670877,1737365444757,-500.0,0.00020585,2]
[349670878,1737365444767,-580.86,0.00020585,2]
[349670879,1737365444901,-580.81,0.00020585,2]
[349670880,1737365444912,-593.51,0.00020585,2]
[349670881,1737365444921,-500.0,0.00020585,2]
[349670882,1737365444931,-500.0,0.00020585,2]
[349670883,1737365444940,-500.0,0.00020585,2]
[349670884,1737365444948,-500.0,0.00020585,2]
[349670885,1737365444958,-500.0,0.00020585,2]
[349670886,1737365444967,-500.0,0.00020585,2]
[349670887,1737365444977,-562.44,0.00020585,2]
[349670888,1737365444986,-504.31,0.00020585,2]
[349670889,1737365444996,-500.0,0.00020585,2]
[349670890,1737365445005,-500.0,0.00020585,2]
[349670891,1737365445015,-955.48,0.00020585,2]
[349670892,1737365445024,-500.0,0.00020585,2]
[349670893,1737365445036,-1029.71,0.00020585,2]
[349670894,1737365445045,-581.98,0.00020585,2]
[349670895,1737365445055,-500.0,0.00020585,2]
[349670896,1737365445064,-1212.71,0.00020585,2]
[349670897,1737365445074,-500.0,0.00020585,2]
[349670898,1737365445084,-525.22,0.00020585,2]
[349670899,1737365445093,-860.88,0.00020585,2]
[349670900,1737365445105,-510.87,0.00020585,2]
[349670901,1737365445115,-815.25,0.00020585,2]
[349670902,1737365445124,-500.0,0.00020585,2]
[349670903,1737365445133,-736.74,0.00020585,2]
[349670904,1737365445142,-673.51,0.00020585,2]
[349670905,1737365445151,-500.0,0.00020585,2]
[349670906,1737365445160,-500.0,0.00020585,2]
[349670907,1737365445170,-500.0,0.00020585,2]
[349670908,1737365445179,-500.0,0.00020585,2]
[349670909,1737365445189,-633.08,0.00020585,2]
[349670910,1737365445198,-500.0,0.00020585,2]
[349670911,1737365445207,-500.0,0.00020585,2]
[349670912,1737365445217,-500.0,0.00020585,2]
[349670913,1737365445226,-1115.84,0.00020585,2]
[349670914,1737365445235,-1067.99,0.00020585,2]
[349670915,1737365445244,-500.0,0.00020585,2]
[349670916,1737365445254,-988.24,0.00020585,2]
[349670917,1737365445264,-1834.65,0.00020585,2]
[349670918,1737365445274,-500.0,0.00020585,2]
[349670919,1737365445285,-881.46,0.00020585,2]
[349670920,1737365445294,-2057.98,0.00020585,2]
[349670921,1737365445303,-500.0,0.00020585,2]
[349670922,1737365445312,-500.0,0.00020585,2]
[349670923,1737365445323,-500.0,0.00020585,2]
[349670924,1737365445332,-500.0,0.00020585,2]
[349670925,1737365445341,-500.0,0.00020585,2]
[349670926,1737365445351,-500.0,0.00020585,2]
[349670927,1737365445366,-1320.04,0.00020585,2]
[349670928,1737365445375,-500.0,0.00020585,2]
[349670929,1737365445385,-655.91,0.00020585,2]
[349670930,1737365445394,-514.9,0.00020585,2]
[349670931,1737365445404,-983.97,0.00020585,2]
[349670932,1737365445413,-564.46,0.00020585,2]
[349670933,1737365445422,-3420.52,0.00020585,2]
[349670934,1737365445431,-500.0,0.00020585,2]
[349670935,1737365445441,-500.0,0.00020585,2]
[349670936,1737365445450,-500.0,0.00020585,2]
[349670937,1737365445459,-500.0,0.00020585,2]
[349670938,1737365445469,-500.0,0.00020585,2]
[349670939,1737365445479,-500.0,0.00020585,2]
[349670940,1737365445488,-651.38,0.00020585,2]
[349670941,1737365445498,-500.0,0.00020585,2]
[349670942,1737365445508,-500.0,0.00020585,2]
[349670943,1737365445517,-940.45,0.00020585,2]
[349670944,1737365445526,-923.46,0.00020585,2]
[349670945,1737365445535,-500.0,0.00020585,2]
[349670946,1737365445545,-500.0,0.00020585,2]
[349670947,1737365445554,-918.33,0.00020585,2]